Workbook

Sheet Sheet1
A1: Written by: Bob Mellinger | AG1: Written by: Bob Mellinger
A2: W6621 W38th Ave. | AG2: W6621 W38th Ave.
A3: Menominee MI 49858 | B3: 906-863-5397 | AG3: Menominee MI 49858 | AH3: 906-863-5397
A4: Marinette Invite 2014
A5: Riverside Country Club Par
C7: =IF(C8="","Warning: Make sure you enter the par for each hole below.","") -> 
B8: Par | C8: 4 | D8: 3 | E8: 4 | F8: 5 | G8: 4 | H8: 4 | I8: 3 | J8: 4 | K8: 4 | L8: =SUM(C8:K8) -> 35 | M8: 3 | N8: 4 | O8: 4 | P8: 3 | Q8: 4 | R8: 4 | S8: 4 | T8: 5 | U8: 5 | V8: =SUM(M8:U8) -> 36 | W8: =L8+V8 -> 71
A9: Denmark | B9: Hole | C9: 1 | D9: 2 | E9: 3 | F9: 4 | G9: 5 | H9: 6 | I9: 7 | J9: 8 | K9: 9 | L9: out | M9: 10 | N9: 11 | O9: 12 | P9: 13 | Q9: 14 | R9: 15 | S9: 16 | T9: 17 | U9: 18 | V9: in | W9: Total
A10: Leah Hansen | B10: DEN | C10: 4 | D10: 5 | E10: 5 | F10: 6 | G10: 5 | H10: 9 | I10: 3 | J10: 7 | K10: 4 | L10: =SUM(C10:K10) -> 48 | M10: 4 | N10: 6 | O10: 4 | P10: 4 | Q10: 5 | R10: 6 | S10: 6 | T10: 9 | U10: 5 | V10: =IF(U10>"a",U10,SUM(M10:U10)) -> 49 | W10: =IF(V10>"a",V10,L10+V10) -> 97
A11: Lyndsey Bielinski | B11: =IF(B10="","",B10) -> DEN | C11: 4 | D11: 4 | E11: 4 | F11: 5 | G11: 6 | H11: 7 | I11: 3 | J11: 5 | K11: 5 | L11: 43 | M11: 4 | N11: 6 | O11: 6 | P11: 4 | Q11: 5 | R11: 5 | S11: 5 | T11: 6 | U11: 6 | V11: =IF(U11>"a",U11,SUM(M11:U11)) -> 47 | W11: =IF(V11>"a",V11,L11+V11) -> 90 | X11: Total
A12: Tiffany Vogel | B12: =B11 -> DEN | C12: 6 | D12: 6 | E12: 6 | F12: 7 | G12: 7 | H12: 6 | I12: 5 | J12: 7 | K12: 6 | L12: 56 | M12: 4 | N12: 7 | O12: 8 | P12: 5 | Q12: 8 | R12: 8 | S12: 6 | T12: 6 | U12: 6 | V12: =IF(U12>"a",U12,SUM(M12:U12)) -> 58 | W12: =IF(V12>"a",V12,L12+V12) -> 114 | X12: =IF(COUNT(W10:W14)<=3,"DQ",IF(COUNT(W10:W14)=4,SUM(W10:W14),SUM(W10:W14)-MAX(W10:W14))) -> 399
A13: Haley Jisa | B13: =B12 -> DEN | C13: 5 | D13: 5 | E13: 5 | F13: 6 | G13: 5 | H13: 5 | I13: 7 | J13: 5 | K13: 5 | L13: 48 | M13: 4 | N13: 7 | O13: 7 | P13: 5 | Q13: 7 | R13: 6 | S13: 6 | T13: 5 | U13: 5 | V13: =IF(U13>"a",U13,SUM(M13:U13)) -> 52 | W13: =IF(V13>"a",V13,L13+V13) -> 100
A14: Abby Chada | B14: =B13 -> DEN | C14: 6 | D14: 5 | E14: 6 | F14: 5 | G14: 9 | H14: 11 | I14: 6 | J14: 5 | K14: 5 | L14: 58 | M14: 5 | N14: 8 | O14: 6 | P14: 5 | Q14: 7 | R14: 6 | S14: 4 | T14: 7 | U14: 6 | V14: =IF(U14>"a",U14,SUM(M14:U14)) -> 54 | W14: =IF(V14>"a",V14,L14+V14) -> 112
A15: Team Bestball | B15: =B14 -> DEN | C15: =MIN(C10:C14) -> 4 | D15: =MIN(D10:D14) -> 4 | E15: 4 | F15: 5 | G15: 5 | H15: 5 | I15: 3 | J15: 5 | K15: 4 | L15: 39 | M15: 4 | N15: 6 | O15: 4 | P15: 4 | Q15: 5 | R15: 5 | S15: 4 | T15: 5 | U15: 5 | V15: =SUM(M15:U15) -> 42 | W15: =L15+V15 -> 81
A17: Marinette | B17: Hole | C17: 1 | D17: 2 | E17: 3 | F17: 4 | G17: 5 | H17: 6 | I17: 7 | J17: 8 | K17: 9 | L17: out | M17: 10 | N17: 11 | O17: 12 | P17: 13 | Q17: 14 | R17: 15 | S17: 16 | T17: 17 | U17: 18 | V17: in | W17: Total
A18: Kayla Thielen | B18: Mar | C18: 4 | D18: 3 | E18: 4 | F18: 5 | G18: 5 | H18: 6 | I18: 3 | J18: 4 | K18: 4 | L18: =SUM(C18:K18) -> 38 | M18: 2 | N18: 6 | O18: 6 | P18: 3 | Q18: 6 | R18: 6 | S18: 6 | T18: 4 | U18: 7 | V18: =IF(U18>"a",U18,SUM(M18:U18)) -> 46 | W18: =IF(V18>"a",V18,L18+V18) -> 84
A19: Cassie Hilbert | B19: =IF(B18="","",B18) -> Mar | C19: 4 | D19: 4 | E19: 3 | F19: 4 | G19: 5 | H19: 5 | I19: 3 | J19: 7 | K19: 6 | L19: 41 | M19: 4 | N19: 6 | O19: 5 | P19: 4 | Q19: 7 | R19: 6 | S19: 5 | T19: 5 | U19: 6 | V19: =IF(U19>"a",U19,SUM(M19:U19)) -> 48 | W19: =IF(V19>"a",V19,L19+V19) -> 89 | X19: Total
A20: Lexi Bretl | B20: =B19 -> Mar | C20: 4 | D20: 4 | E20: 5 | F20: 6 | G20: 6 | H20: 5 | I20: 6 | J20: 8 | K20: 6 | L20: 50 | M20: 4 | N20: 8 | O20: 4 | P20: 4 | Q20: 6 | R20: 5 | S20: 4 | T20: 11 | U20: 6 | V20: =IF(U20>"a",U20,SUM(M20:U20)) -> 52 | W20: =IF(V20>"a",V20,L20+V20) -> 102 | X20: =IF(COUNT(W18:W22)<=3,"DQ",IF(COUNT(W18:W22)=4,SUM(W18:W22),SUM(W18:W22)-MAX(W18:W22))) -> 382
A21: Mariah Chenier | B21: =B20 -> Mar | C21: 4 | D21: 6 | E21: 5 | F21: 6 | G21: 5 | H21: 10 | I21: 5 | J21: 8 | K21: 5 | L21: 54 | M21: 6 | N21: 6 | O21: 6 | P21: 4 | Q21: 6 | R21: 8 | S21: 4 | T21: 9 | U21: 6 | V21: =IF(U21>"a",U21,SUM(M21:U21)) -> 55 | W21: =IF(V21>"a",V21,L21+V21) -> 109
A22: Hallie Olsen | B22: =B21 -> Mar | C22: 6 | D22: 5 | E22: 5 | F22: 6 | G22: 5 | H22: 7 | I22: 4 | J22: 5 | K22: 5 | L22: 48 | M22: 6 | N22: 6 | O22: 7 | P22: 6 | Q22: 5 | R22: 8 | S22: 6 | T22: 8 | U22: 7 | V22: =IF(U22>"a",U22,SUM(M22:U22)) -> 59 | W22: =IF(V22>"a",V22,L22+V22) -> 107
A23: Team Bestball | B23: =B22 -> Mar | C23: =MIN(C18:C22) -> 4 | D23: 3 | E23: 3 | F23: 4 | G23: 5 | H23: 5 | I23: 3 | J23: 4 | K23: 4 | L23: 35 | M23: =MIN(M18:M22) -> 2 | N23: 6 | O23: 4 | P23: 3 | Q23: 5 | R23: 5 | S23: 4 | T23: 4 | U23: 6 | V23: =SUM(M23:U23) -> 39 | W23: =L23+V23 -> 74
A25: Preble | B25: Hole | C25: 1 | D25: 2 | E25: 3 | F25: 4 | G25: 5 | H25: 6 | I25: 7 | J25: 8 | K25: 9 | L25: out | M25: 10 | N25: 11 | O25: 12 | P25: 13 | Q25: 14 | R25: 15 | S25: 16 | T25: 17 | U25: 18 | V25: in | W25: Total
A26: Maddy Neumeier | B26: PRE | C26: 4 | D26: 4 | E26: 5 | F26: 4 | G26: 4 | H26: 5 | I26: 4 | J26: 5 | K26: 5 | L26: =SUM(C26:K26) -> 40 | M26: 4 | N26: 5 | O26: 6 | P26: 4 | Q26: 3 | R26: 4 | S26: 4 | T26: 6 | U26: 4 | V26: =IF(U26>"a",U26,SUM(M26:U26)) -> 40 | W26: =IF(V26>"a",V26,L26+V26) -> 80
A27: Sydney Onesti | B27: =IF(B26="","",B26) -> PRE | C27: 5 | D27: 4 | E27: 5 | F27: 6 | G27: 4 | H27: 8 | I27: 4 | J27: 6 | K27: 6 | L27: 48 | M27: 5 | N27: 6 | O27: 5 | P27: 6 | Q27: 5 | R27: 6 | S27: 4 | T27: 5 | U27: 8 | V27: =IF(U27>"a",U27,SUM(M27:U27)) -> 50 | W27: =IF(V27>"a",V27,L27+V27) -> 98 | X27: Total
A28: Katie Warpinski | B28: =B27 -> PRE | C28: 5 | D28: 3 | E28: 5 | F28: 6 | G28: 5 | H28: 6 | I28: 4 | J28: 6 | K28: 5 | L28: 45 | M28: 3 | N28: 7 | O28: 7 | P28: 4 | Q28: 5 | R28: 7 | S28: 5 | T28: 5 | U28: 5 | V28: =IF(U28>"a",U28,SUM(M28:U28)) -> 48 | W28: =IF(V28>"a",V28,L28+V28) -> 93 | X28: =IF(COUNT(W26:W30)<=3,"DQ",IF(COUNT(W26:W30)=4,SUM(W26:W30),SUM(W26:W30)-MAX(W26:W30))) -> 375
A29: Aleta Wegner | B29: =B28 -> PRE | C29: 6 | D29: 5 | E29: 6 | F29: 7 | G29: 6 | H29: 7 | I29: 5 | J29: 5 | K29: 6 | L29: 53 | M29: 5 | N29: 6 | O29: 6 | P29: 5 | Q29: 7 | R29: 6 | S29: 6 | T29: 9 | U29: 6 | V29: =IF(U29>"a",U29,SUM(M29:U29)) -> 56 | W29: =IF(V29>"a",V29,L29+V29) -> 109
A30: Annie Schneider | B30: =B29 -> PRE | C30: 4 | D30: 4 | E30: 6 | F30: 6 | G30: 5 | H30: 5 | I30: 3 | J30: 9 | K30: 5 | L30: 47 | M30: 4 | N30: 7 | O30: 4 | P30: 3 | Q30: 7 | R30: 7 | S30: 7 | T30: 7 | U30: 11 | V30: =IF(U30>"a",U30,SUM(M30:U30)) -> 57 | W30: =IF(V30>"a",V30,L30+V30) -> 104
A31: Team Bestball | B31: =B30 -> PRE | C31: =MIN(C26:C30) -> 4 | D31: 3 | E31: 5 | F31: 4 | G31: 4 | H31: 5 | I31: 3 | J31: 5 | K31: 5 | L31: 38 | M31: =MIN(M26:M30) -> 3 | N31: 5 | O31: 4 | P31: 3 | Q31: 3 | R31: 4 | S31: 4 | T31: 5 | U31: 4 | V31: =SUM(M31:U31) -> 35 | W31: =L31+V31 -> 73
A33: Seymour | B33: Hole | C33: 1 | D33: 2 | E33: 3 | F33: 4 | G33: 5 | H33: 6 | I33: 7 | J33: 8 | K33: 9 | L33: out | M33: 10 | N33: 11 | O33: 12 | P33: 13 | Q33: 14 | R33: 15 | S33: 16 | T33: 17 | U33: 18 | V33: in | W33: Total
A34: Carley Schmit | B34: Sey | C34: 6 | D34: 4 | E34: 7 | F34: 11 | G34: 8 | H34: 6 | I34: 3 | J34: 6 | K34: 7 | L34: =SUM(C34:K34) -> 58 | M34: 5 | N34: 6 | O34: 6 | P34: 3 | Q34: 6 | R34: 6 | S34: 4 | T34: 7 | U34: 6 | V34: =IF(U34>"a",U34,SUM(M34:U34)) -> 49 | W34: =IF(V34>"a",V34,L34+V34) -> 107
A35: Brittany Rettler | B35: =IF(B34="","",B34) -> Sey | C35: 4 | D35: 5 | E35: 6 | F35: 6 | G35: 7 | H35: 9 | I35: 4 | J35: 7 | K35: 6 | L35: 54 | M35: 4 | N35: 7 | O35: 10 | P35: 5 | Q35: 7 | R35: 6 | S35: 5 | T35: 8 | U35: 5 | V35: =IF(U35>"a",U35,SUM(M35:U35)) -> 57 | W35: =IF(V35>"a",V35,L35+V35) -> 111 | X35: Total
A36: Anna Pesola | B36: =B35 -> Sey | C36: 5 | D36: 5 | E36: 6 | F36: 7 | G36: 6 | H36: 8 | I36: 6 | J36: 8 | K36: 7 | L36: 58 | M36: 6 | N36: 7 | O36: 5 | P36: 5 | Q36: 6 | R36: 6 | S36: 5 | T36: 6 | U36: 6 | V36: =IF(U36>"a",U36,SUM(M36:U36)) -> 52 | W36: =IF(V36>"a",V36,L36+V36) -> 110 | X36: =IF(COUNT(W34:W38)<=3,"DQ",IF(COUNT(W34:W38)=4,SUM(W34:W38),SUM(W34:W38)-MAX(W34:W38))) -> 441
A37: Hannah Schmit | B37: =B36 -> Sey | C37: 6 | D37: 8 | E37: 8 | F37: 6 | G37: 8 | H37: 11 | I37: 10 | J37: 7 | K37: 7 | L37: 71 | M37: 5 | N37: 7 | O37: 6 | P37: 4 | Q37: 9 | R37: 5 | S37: 6 | T37: 6 | U37: 6 | V37: =IF(U37>"a",U37,SUM(M37:U37)) -> 54 | W37: =IF(V37>"a",V37,L37+V37) -> 125
A38: Erika Gomm | B38: =B37 -> Sey | C38: 5 | D38: 4 | E38: 7 | F38: 8 | G38: 4 | H38: 8 | I38: 5 | J38: 11 | K38: 6 | L38: 58 | M38: 4 | N38: 5 | O38: 7 | P38: 3 | Q38: 7 | R38: 6 | S38: 7 | T38: 7 | U38: 9 | V38: =IF(U38>"a",U38,SUM(M38:U38)) -> 55 | W38: =IF(V38>"a",V38,L38+V38) -> 113
A39: Team Bestball | B39: =B38 -> Sey | C39: =MIN(C34:C38) -> 4 | D39: 4 | E39: 6 | F39: 6 | G39: 4 | H39: 6 | I39: 3 | J39: 6 | K39: 6 | L39: 45 | M39: =MIN(M34:M38) -> 4 | N39: 5 | O39: 5 | P39: 3 | Q39: 6 | R39: 5 | S39: 4 | T39: 6 | U39: 5 | V39: =SUM(M39:U39) -> 43 | W39: =L39+V39 -> 88
A41: Shawano | B41: Hole | C41: 1 | D41: 2 | E41: 3 | F41: 4 | G41: 5 | H41: 6 | I41: 7 | J41: 8 | K41: 9 | L41: out | M41: 10 | N41: 11 | O41: 12 | P41: 13 | Q41: 14 | R41: 15 | S41: 16 | T41: 17 | U41: 18 | V41: in | W41: Total
B42: Sha | L42: =SUM(C42:K42) -> 0 | U42: DQ | V42: =IF(U42>"a",U42,SUM(M42:U42)) -> DQ | W42: =IF(V42>"a",V42,L42+V42) -> DQ
A43: Julia Beck | B43: =IF(B42="","",B42) -> Sha | C43: 4 | D43: 5 | E43: 6 | F43: 7 | G43: 5 | H43: 6 | I43: 4 | J43: 5 | K43: 6 | L43: 48 | M43: 4 | N43: 6 | O43: 6 | P43: 3 | Q43: 9 | R43: 8 | S43: 7 | T43: 7 | U43: 5 | V43: =IF(U43>"a",U43,SUM(M43:U43)) -> 55 | W43: =IF(V43>"a",V43,L43+V43) -> 103 | X43: Total
A44: Gabby Krueger | B44: =B43 -> Sha | C44: 4 | D44: 5 | E44: 5 | F44: 6 | G44: 6 | H44: 5 | I44: 4 | J44: 8 | K44: 7 | L44: 50 | M44: 6 | N44: 9 | O44: 7 | P44: 7 | Q44: 8 | R44: 6 | S44: 9 | T44: 7 | U44: 9 | V44: =IF(U44>"a",U44,SUM(M44:U44)) -> 68 | W44: =IF(V44>"a",V44,L44+V44) -> 118 | X44: =IF(COUNT(W42:W46)<=3,"DQ",IF(COUNT(W42:W46)=4,SUM(W42:W46),SUM(W42:W46)-MAX(W42:W46))) -> 459
A45: Sydney Schreiber | B45: =B44 -> Sha | C45: 7 | D45: 8 | E45: 9 | F45: 6 | G45: 6 | H45: 10 | I45: 5 | J45: 6 | K45: 8 | L45: 65 | M45: 6 | N45: 7 | O45: 8 | P45: 6 | Q45: 6 | R45: 6 | S45: 8 | T45: 9 | U45: 7 | V45: =IF(U45>"a",U45,SUM(M45:U45)) -> 63 | W45: =IF(V45>"a",V45,L45+V45) -> 128
A46: Brianna Zook | B46: =B45 -> Sha | C46: 7 | D46: 4 | E46: 5 | F46: 5 | G46: 4 | H46: 10 | I46: 4 | J46: 5 | K46: 6 | L46: 50 | M46: 4 | N46: 6 | O46: 7 | P46: 8 | Q46: 9 | R46: 8 | S46: 4 | T46: 8 | U46: 6 | V46: =IF(U46>"a",U46,SUM(M46:U46)) -> 60 | W46: =IF(V46>"a",V46,L46+V46) -> 110
B47: =B46 -> Sha | C47: =MIN(C42:C46) -> 4 | D47: 4 | E47: 5 | F47: 5 | G47: 4 | H47: 5 | I47: 4 | J47: 5 | K47: 6 | L47: 42 | M47: =MIN(M42:M46) -> 4 | N47: 6 | O47: 6 | P47: 3 | Q47: 6 | R47: 6 | S47: 4 | T47: 7 | U47: 5 | V47: =SUM(M47:U47) -> 47 | W47: =L47+V47 -> 89
A49: BayPort | B49: Hole | C49: 1 | D49: 2 | E49: 3 | F49: 4 | G49: 5 | H49: 6 | I49: 7 | J49: 8 | K49: 9 | L49: out | M49: 10 | N49: 11 | O49: 12 | P49: 13 | Q49: 14 | R49: 15 | S49: 16 | T49: 17 | U49: 18 | V49: in | W49: Total
A50: Maddie Gustrafson | B50: Bay | C50: 5 | D50: 6 | E50: 5 | F50: 6 | G50: 5 | H50: 6 | I50: 6 | J50: 7 | K50: 6 | L50: =SUM(C50:K50) -> 52 | M50: 3 | N50: 9 | O50: 10 | P50: 5 | Q50: 6 | R50: 6 | S50: 5 | T50: 10 | U50: 8 | V50: =IF(U50>"a",U50,SUM(M50:U50)) -> 62 | W50: =IF(V50>"a",V50,L50+V50) -> 114
A51: Hannah Luedke | B51: =IF(B50="","",B50) -> Bay | C51: 5 | D51: 4 | E51: 5 | F51: 6 | G51: 4 | H51: 7 | I51: 3 | J51: 5 | K51: 5 | L51: 44 | M51: 6 | N51: 6 | O51: 7 | P51: 4 | Q51: 5 | R51: 5 | S51: 8 | T51: 5 | U51: 5 | V51: =IF(U51>"a",U51,SUM(M51:U51)) -> 51 | W51: =IF(V51>"a",V51,L51+V51) -> 95 | X51: Total
A52: Molly Hilbert | B52: =B51 -> Bay | C52: 4 | D52: 6 | E52: 7 | F52: 7 | G52: 6 | H52: 6 | I52: 6 | J52: 6 | K52: 6 | L52: 54 | M52: 7 | N52: 8 | O52: 5 | P52: 4 | Q52: 4 | R52: 5 | S52: 5 | T52: 8 | U52: 6 | V52: =IF(U52>"a",U52,SUM(M52:U52)) -> 52 | W52: =IF(V52>"a",V52,L52+V52) -> 106 | X52: =IF(COUNT(W50:W54)<=3,"DQ",IF(COUNT(W50:W54)=4,SUM(W50:W54),SUM(W50:W54)-MAX(W50:W54))) -> 423
A53: Brianna Schermitzler | B53: =B52 -> Bay | C53: 5 | D53: 5 | E53: 6 | F53: 6 | G53: 5 | H53: 8 | I53: 5 | J53: 6 | K53: 7 | L53: 53 | M53: 6 | N53: 7 | O53: 7 | P53: 3 | Q53: 6 | R53: 6 | S53: 6 | T53: 7 | U53: 7 | V53: =IF(U53>"a",U53,SUM(M53:U53)) -> 55 | W53: =IF(V53>"a",V53,L53+V53) -> 108
A54: Hailey Bergman | B54: =B53 -> Bay | C54: 5 | D54: 6 | E54: 5 | F54: 7 | G54: 6 | H54: 4 | I54: 6 | J54: 7 | K54: 7 | L54: 53 | M54: 4 | N54: 7 | O54: 6 | P54: 8 | Q54: 8 | R54: 8 | S54: 10 | T54: 10 | U54: 7 | V54: =IF(U54>"a",U54,SUM(M54:U54)) -> 68 | W54: =IF(V54>"a",V54,L54+V54) -> 121
A55: Team Bestball | B55: =B54 -> Bay | C55: =MIN(C50:C54) -> 4 | D55: 4 | E55: 5 | F55: 6 | G55: 4 | H55: 4 | I55: 3 | J55: 5 | K55: 5 | L55: 40 | M55: =MIN(M50:M54) -> 3 | N55: 6 | O55: 5 | P55: 3 | Q55: 4 | R55: 5 | S55: 5 | T55: 5 | U55: 5 | V55: =SUM(M55:U55) -> 41 | W55: =L55+V55 -> 81
A57: West De Pere | B57: Hole | C57: 1 | D57: 2 | E57: 3 | F57: 4 | G57: 5 | H57: 6 | I57: 7 | J57: 8 | K57: 9 | L57: out | M57: 10 | N57: 11 | O57: 12 | P57: 13 | Q57: 14 | R57: 15 | S57: 16 | T57: 17 | U57: 18 | V57: in | W57: Total
A58: Megan Lau | B58: WDP | C58: 4 | D58: 3 | E58: 4 | F58: 5 | G58: 5 | H58: 5 | I58: 4 | J58: 4 | K58: 5 | L58: =SUM(C58:K58) -> 39 | M58: 3 | N58: 9 | O58: 5 | P58: 3 | Q58: 6 | R58: 7 | S58: 6 | T58: 6 | U58: 5 | V58: =IF(U58>"a",U58,SUM(M58:U58)) -> 50 | W58: =IF(V58>"a",V58,L58+V58) -> 89
A59: Brittany Nohr | B59: =IF(B58="","",B58) -> WDP | C59: 5 | D59: 3 | E59: 6 | F59: 5 | G59: 5 | H59: 7 | I59: 3 | J59: 5 | K59: 8 | L59: 47 | M59: 4 | N59: 6 | O59: 4 | P59: 4 | Q59: 5 | R59: 5 | S59: 6 | T59: 8 | U59: 6 | V59: =IF(U59>"a",U59,SUM(M59:U59)) -> 48 | W59: =IF(V59>"a",V59,L59+V59) -> 95 | X59: Total
A60: Abby Van De Hei | B60: =B59 -> WDP | C60: 5 | D60: 4 | E60: 5 | F60: 6 | G60: 9 | H60: 11 | I60: 6 | J60: 6 | K60: 5 | L60: 57 | M60: 5 | N60: 5 | O60: 5 | P60: 5 | Q60: 4 | R60: 5 | S60: 5 | T60: 8 | U60: 6 | V60: =IF(U60>"a",U60,SUM(M60:U60)) -> 48 | W60: =IF(V60>"a",V60,L60+V60) -> 105 | X60: =IF(COUNT(W58:W62)<=3,"DQ",IF(COUNT(W58:W62)=4,SUM(W58:W62),SUM(W58:W62)-MAX(W58:W62))) -> 388
A61: Crystal Hill | B61: =B60 -> WDP | C61: 4 | D61: 5 | E61: 7 | F61: 5 | G61: 8 | H61: 6 | I61: 5 | J61: 6 | K61: 5 | L61: 51 | M61: 5 | N61: 7 | O61: 5 | P61: 3 | Q61: 7 | R61: 4 | S61: 6 | T61: 6 | U61: 5 | V61: =IF(U61>"a",U61,SUM(M61:U61)) -> 48 | W61: =IF(V61>"a",V61,L61+V61) -> 99
A62: Maddy Coppens | B62: =B61 -> WDP | C62: 4 | D62: 4 | E62: 7 | F62: 5 | G62: 6 | H62: 7 | I62: 6 | J62: 5 | K62: 7 | L62: 51 | M62: 7 | N62: 6 | O62: 6 | P62: 4 | Q62: 5 | R62: 8 | S62: 6 | T62: 5 | U62: 7 | V62: =IF(U62>"a",U62,SUM(M62:U62)) -> 54 | W62: =IF(V62>"a",V62,L62+V62) -> 105
A63: Team Bestball | B63: =B62 -> WDP | C63: =MIN(C58:C62) -> 4 | D63: 3 | E63: 4 | F63: 5 | G63: 5 | H63: 5 | I63: 3 | J63: 4 | K63: 5 | L63: 38 | M63: =MIN(M58:M62) -> 3 | N63: 5 | O63: 4 | P63: 3 | Q63: 4 | R63: 4 | S63: 5 | T63: 5 | U63: 5 | V63: =SUM(M63:U63) -> 38 | W63: =L63+V63 -> 76
A65: Oconto Falls | B65: Hole | C65: 1 | D65: 2 | E65: 3 | F65: 4 | G65: 5 | H65: 6 | I65: 7 | J65: 8 | K65: 9 | L65: out | M65: 10 | N65: 11 | O65: 12 | P65: 13 | Q65: 14 | R65: 15 | S65: 16 | T65: 17 | U65: 18 | V65: in | W65: Total
A66: Julie Moore | B66: OF | C66: 7 | D66: 10 | E66: 7 | F66: 7 | G66: 5 | H66: 8 | I66: 6 | J66: 7 | K66: 7 | L66: =SUM(C66:K66) -> 64 | M66: 4 | N66: 7 | O66: 5 | P66: 4 | Q66: 10 | R66: 7 | S66: 6 | T66: 8 | U66: 7 | V66: =IF(U66>"a",U66,SUM(M66:U66)) -> 58 | W66: =IF(V66>"a",V66,L66+V66) -> 122
A67: Liz Coopman | B67: =IF(B66="","",B66) -> OF | C67: 5 | D67: 5 | E67: 7 | F67: 8 | G67: 11 | H67: 11 | I67: 6 | J67: 9 | K67: 7 | L67: 69 | M67: 5 | N67: 11 | O67: 10 | P67: 4 | Q67: 7 | R67: 8 | S67: 8 | T67: 9 | U67: 11 | V67: =IF(U67>"a",U67,SUM(M67:U67)) -> 73 | W67: =IF(V67>"a",V67,L67+V67) -> 142 | X67: Total
A68: Brittany Russel | B68: =B67 -> OF | C68: 8 | D68: 4 | E68: 5 | F68: 10 | G68: 5 | H68: 8 | I68: 6 | J68: 7 | K68: 7 | L68: 60 | M68: 5 | N68: 6 | O68: 7 | P68: 4 | Q68: 7 | R68: 5 | S68: 6 | T68: 6 | U68: 5 | V68: =IF(U68>"a",U68,SUM(M68:U68)) -> 51 | W68: =IF(V68>"a",V68,L68+V68) -> 111 | X68: =IF(COUNT(W66:W70)<=3,"DQ",IF(COUNT(W66:W70)=4,SUM(W66:W70),SUM(W66:W70)-MAX(W66:W70))) -> 492
A69: Bridget Gorman | B69: =B68 -> OF | C69: 9 | D69: 3 | E69: 7 | F69: 7 | G69: 6 | H69: 7 | I69: 5 | J69: 11 | K69: 6 | L69: 61 | M69: 6 | N69: 10 | O69: 7 | P69: 3 | Q69: 8 | R69: 5 | S69: 6 | T69: 10 | U69: 9 | V69: =IF(U69>"a",U69,SUM(M69:U69)) -> 64 | W69: =IF(V69>"a",V69,L69+V69) -> 125
A70: Rebecca Berkovitz | B70: =B69 -> OF | C70: 6 | D70: 5 | E70: 7 | F70: 7 | G70: 7 | H70: 9 | I70: 4 | J70: 10 | K70: 7 | L70: 62 | M70: 6 | N70: 7 | O70: 11 | P70: 9 | Q70: 8 | R70: 5 | S70: 9 | T70: 10 | U70: 7 | V70: =IF(U70>"a",U70,SUM(M70:U70)) -> 72 | W70: =IF(V70>"a",V70,L70+V70) -> 134
A71: Team Bestball | B71: =B70 -> OF | C71: =MIN(C66:C70) -> 5 | D71: 3 | E71: 5 | F71: 7 | G71: 5 | H71: 7 | I71: 4 | J71: 7 | K71: 6 | L71: 49 | M71: =MIN(M66:M70) -> 4 | N71: 6 | O71: 5 | P71: 3 | Q71: 7 | R71: 5 | S71: 6 | T71: 6 | U71: 5 | V71: =SUM(M71:U71) -> 47 | W71: =L71+V71 -> 96
A73: Oconto | B73: Hole | C73: 1 | D73: 2 | E73: 3 | F73: 4 | G73: 5 | H73: 6 | I73: 7 | J73: 8 | K73: 9 | L73: out | M73: 10 | N73: 11 | O73: 12 | P73: 13 | Q73: 14 | R73: 15 | S73: 16 | T73: 17 | U73: 18 | V73: in | W73: Total
A74: Megan Ryan | B74: OCO | C74: 7 | D74: 6 | E74: 7 | F74: 7 | G74: 5 | H74: 10 | I74: 5 | J74: 5 | K74: 5 | L74: =SUM(C74:K74) -> 57 | M74: 5 | N74: 7 | O74: 6 | P74: 4 | Q74: 5 | R74: 6 | S74: 5 | T74: 6 | U74: 7 | V74: =IF(U74>"a",U74,SUM(M74:U74)) -> 51 | W74: =IF(V74>"a",V74,L74+V74) -> 108
A75: Amber Moder | B75: =IF(B74="","",B74) -> OCO | C75: 7 | D75: 7 | E75: 7 | F75: 10 | G75: 8 | H75: 7 | I75: 4 | J75: 7 | K75: 6 | L75: 63 | M75: 5 | N75: 9 | O75: 9 | P75: 5 | Q75: 9 | R75: 9 | S75: 7 | T75: 9 | U75: 11 | V75: =IF(U75>"a",U75,SUM(M75:U75)) -> 73 | W75: =IF(V75>"a",V75,L75+V75) -> 136 | X75: Total
A76: Ashley Pruessler | B76: =B75 -> OCO | C76: 5 | D76: 5 | E76: 9 | F76: 7 | G76: 6 | H76: 7 | I76: 6 | J76: 7 | K76: 8 | L76: 60 | M76: 5 | N76: 10 | O76: 7 | P76: 5 | Q76: 6 | R76: 8 | S76: 4 | T76: 11 | U76: 8 | V76: =IF(U76>"a",U76,SUM(M76:U76)) -> 64 | W76: =IF(V76>"a",V76,L76+V76) -> 124 | X76: =IF(COUNT(W74:W78)<=3,"DQ",IF(COUNT(W74:W78)=4,SUM(W74:W78),SUM(W74:W78)-MAX(W74:W78))) -> 521
A77: Morgan Saari | B77: =B76 -> OCO | C77: 7 | D77: 6 | E77: 6 | F77: 10 | G77: 9 | H77: 11 | I77: 5 | J77: 11 | K77: 8 | L77: 73 | M77: 5 | N77: 11 | O77: 11 | P77: 6 | Q77: 8 | R77: 9 | S77: 11 | T77: 10 | U77: 9 | V77: =IF(U77>"a",U77,SUM(M77:U77)) -> 80 | W77: =IF(V77>"a",V77,L77+V77) -> 153
B78: =B77 -> OCO | L78: 0 | U78: DQ | V78: =IF(U78>"a",U78,SUM(M78:U78)) -> DQ | W78: =IF(V78>"a",V78,L78+V78) -> DQ
A79: Team Bestball | B79: =B78 -> OCO | C79: =MIN(C74:C78) -> 5 | D79: 5 | E79: 6 | F79: 7 | G79: 5 | H79: 7 | I79: 4 | J79: 5 | K79: 5 | L79: 49 | M79: =MIN(M74:M78) -> 5 | N79: 7 | O79: 6 | P79: 4 | Q79: 5 | R79: 6 | S79: 4 | T79: 6 | U79: 7 | V79: =SUM(M79:U79) -> 50 | W79: =L79+V79 -> 99
A81: Ashwaubenon | B81: Hole | C81: 1 | D81: 2 | E81: 3 | F81: 4 | G81: 5 | H81: 6 | I81: 7 | J81: 8 | K81: 9 | L81: out | M81: 10 | N81: 11 | O81: 12 | P81: 13 | Q81: 14 | R81: 15 | S81: 16 | T81: 17 | U81: 18 | V81: in | W81: Total
A82: Dani Neel | B82: DEP | C82: 6 | D82: 5 | E82: 7 | F82: 8 | G82: 6 | H82: 8 | I82: 5 | J82: 5 | K82: 7 | L82: =SUM(C82:K82) -> 57 | M82: 4 | N82: 7 | O82: 6 | P82: 4 | Q82: 8 | R82: 9 | S82: 6 | T82: 7 | U82: 8 | V82: =IF(U82>"a",U82,SUM(M82:U82)) -> 59 | W82: =IF(V82>"a",V82,L82+V82) -> 116
A83: Kayley Sjoholm | B83: =IF(B82="","",B82) -> DEP | C83: 5 | D83: 6 | E83: 5 | F83: 6 | G83: 7 | H83: 11 | I83: 6 | J83: 6 | K83: 6 | L83: 58 | M83: 5 | N83: 7 | O83: 8 | P83: 8 | Q83: 5 | R83: 7 | S83: 7 | T83: 6 | U83: 8 | V83: =IF(U83>"a",U83,SUM(M83:U83)) -> 61 | W83: =IF(V83>"a",V83,L83+V83) -> 119 | X83: Total
A84: Breanna Schmitt | B84: =B83 -> DEP | C84: 8 | D84: 5 | E84: 9 | F84: 6 | G84: 7 | H84: 8 | I84: 6 | J84: 7 | K84: 6 | L84: 62 | M84: 4 | N84: 6 | O84: 6 | P84: 4 | Q84: 8 | R84: 8 | S84: 6 | T84: 6 | U84: 10 | V84: =IF(U84>"a",U84,SUM(M84:U84)) -> 58 | W84: =IF(V84>"a",V84,L84+V84) -> 120 | X84: =IF(COUNT(W82:W86)<=3,"DQ",IF(COUNT(W82:W86)=4,SUM(W82:W86),SUM(W82:W86)-MAX(W82:W86))) -> 474
A85: Mckenna Morrow | B85: =B84 -> DEP | C85: 8 | D85: 5 | E85: 7 | F85: 6 | G85: 6 | H85: 10 | I85: 6 | J85: 8 | K85: 10 | L85: 66 | M85: 6 | N85: 7 | O85: 7 | P85: 3 | Q85: 7 | R85: 6 | S85: 5 | T85: 7 | U85: 8 | V85: =IF(U85>"a",U85,SUM(M85:U85)) -> 56 | W85: =IF(V85>"a",V85,L85+V85) -> 122
A86: Hailey Brabant | B86: =B85 -> DEP | C86: 6 | D86: 4 | E86: 7 | F86: 8 | G86: 6 | H86: 8 | I86: 3 | J86: 8 | K86: 7 | L86: 57 | M86: 4 | N86: 8 | O86: 6 | P86: 3 | Q86: 7 | R86: 8 | S86: 8 | T86: 8 | U86: 10 | V86: =IF(U86>"a",U86,SUM(M86:U86)) -> 62 | W86: =IF(V86>"a",V86,L86+V86) -> 119
A87: Team Bestball | B87: =B86 -> DEP | C87: =MIN(C82:C86) -> 5 | D87: 4 | E87: 5 | F87: 6 | G87: 6 | H87: 8 | I87: 3 | J87: 5 | K87: 6 | L87: 48 | M87: =MIN(M82:M86) -> 4 | N87: 6 | O87: 6 | P87: 3 | Q87: 5 | R87: 6 | S87: 5 | T87: 6 | U87: 8 | V87: =SUM(M87:U87) -> 49 | W87: =L87+V87 -> 97
B90: Hole | C90: 1 | D90: 2 | E90: 3 | F90: 4 | G90: 5 | H90: 6 | I90: 7 | J90: 8 | K90: 9 | M90: 10 | N90: 11 | O90: 12 | P90: 13 | Q90: 14 | R90: 15 | S90: 16 | T90: 17 | U90: 18
A91: Hole Avg. | C91: =(AVERAGE(C82:C86,C74:C78,C66:C70,C58:C62,C50:C54,C42:C46,C34:C38,C26:C30,C18:C22,C10:C14)) -> 5.395833333 | D91: =(AVERAGE(D82:D86,D74:D78,D66:D70,D58:D62,D50:D54,D42:D46,D34:D38,D26:D30,D18:D22,D10:D14)) -> 4.9375 | E91: 6 | F91: 6.5 | G91: 6.020833333 | H91: 7.604166667 | I91: 4.854166667 | J91: 6.666666667 | K91: 6.166666667 | M91: 4.729166667 | N91: 7.083333333 | O91: 6.5625 | P91: 4.5625 | Q91: 6.5625 | R91: 6.458333333 | S91: 6.041666667 | T91: 7.354166667 | U91: 6.9375
A92: Over (Under) Par | C92: =C91-C8 -> 1.395833333 | D92: 1.9375 | E92: 2 | F92: 1.5 | G92: 2.020833333 | H92: 3.604166667 | I92: 1.854166667 | J92: 2.666666667 | K92: 2.166666667 | M92: =M91-M8 -> 1.729166667 | N92: 3.083333333 | O92: 2.5625 | P92: 1.5625 | Q92: 2.5625 | R92: 2.458333333 | S92: 2.041666667 | T92: 2.354166667 | U92: 1.9375
Z93: =A4 -> Marinette Invite 2014
Z94: =A5 -> Riverside Country Club Par
Z95: Individual Scores | AG95: Hole-by-Hole Analysis
Z96: School | AA96: Name | AB96: Out | AC96: In | AD96: Score | AE96: Place | AG96: Hole | AH96: Par | AI96: Avg | AJ96: Over | AK96: Ranking
Z97: =$B$10 -> DEN | AA97: =$A$10 -> Leah Hansen | AB97: =$L$10 -> 48 | AC97: =$V$10 -> 49 | AD97: =$W$10 -> 97 | AE97: =IF(AA97="","",IF(AD97>"a","",IF(AD97=AD96,AE96,COUNTA($AE$76:AE96)))) -> 1 | AG97: 18 | AH97: =$U$8 -> 5 | AI97: =$U$91 -> 6.9375 | AJ97: =$U$92 -> 1.9375 | AK97: =IF(AJ97=AJ96,AK96,COUNT($AK$96:AK96)+1) -> 1
A98: Team | B98: Score | D98: Rank | Z98: =$B$18 -> Mar | AA98: =$A$18 -> Kayla Thielen | AB98: =$L$18 -> 38 | AC98: =$V$18 -> 46 | AD98: =$W$18 -> 84 | AE98: =IF(AA98="","",IF(AD98>"a","",IF(AD98=AD97,AE97,COUNTA($AE$76:AE97)))) -> 2 | AG98: 17 | AH98: =$T$8 -> 5 | AI98: =$T$91 -> 7.354166667 | AJ98: =$T$92 -> 2.354166667 | AK98: =IF(AJ98=AJ97,AK97,COUNT($AK$96:AK97)+1) -> 2
A99: =$A$9 -> Denmark | B99: =$X$12 -> 399 | D99: =IF(A99="","",IF(B99=B98,D98,COUNT($D$98:D98)+1)) -> 1 | Z99: =$B$26 -> PRE | AA99: =$A$26 -> Maddy Neumeier | AB99: =$L$26 -> 40 | AC99: =$V$26 -> 40 | AD99: =$W$26 -> 80 | AE99: =IF(AA99="","",IF(AD99>"a","",IF(AD99=AD98,AE98,COUNTA($AE$76:AE98)))) -> 3 | AG99: 16 | AH99: =$S$8 -> 4 | AI99: =$S$91 -> 6.041666667 | AJ99: =$S$92 -> 2.041666667 | AK99: =IF(AJ99=AJ98,AK98,COUNT($AK$96:AK98)+1) -> 3
A100: =$A$49 -> BayPort | B100: =$X$52 -> 423 | D100: =IF(A100="","",IF(B100=B99,D99,COUNT($D$98:D99)+1)) -> 2 | Z100: =$B$58 -> WDP | AA100: =$A$58 -> Megan Lau | AB100: =$L$58 -> 39 | AC100: =$V$58 -> 50 | AD100: =$W$58 -> 89 | AE100: =IF(AA100="","",IF(AD100>"a","",IF(AD100=AD99,AE99,COUNTA($AE$76:AE99)))) -> 4 | AG100: 15 | AH100: =$R$8 -> 4 | AI100: =$R$91 -> 6.458333333 | AJ100: =$R$92 -> 2.458333333 | AK100: =IF(AJ100=AJ99,AK99,COUNT($AK$96:AK99)+1) -> 4
A101: =$A$17 -> Marinette | B101: =$X$20 -> 382 | D101: =IF(A101="","",IF(B101=B100,D100,COUNT($D$98:D100)+1)) -> 3 | Z101: =$B$51 -> Bay | AA101: =$A$51 -> Hannah Luedke | AB101: =$L$51 -> 44 | AC101: =$V$51 -> 51 | AD101: =$W$51 -> 95 | AE101: =IF(AA101="","",IF(AD101>"a","",IF(AD101=AD100,AE100,COUNTA($AE$76:AE100)))) -> 5 | AG101: 14 | AH101: =$Q$8 -> 4 | AI101: =$Q$91 -> 6.5625 | AJ101: =$Q$92 -> 2.5625 | AK101: =IF(AJ101=AJ100,AK100,COUNT($AK$96:AK100)+1) -> 5
A102: =$A$57 -> West De Pere | B102: =$X$60 -> 388 | D102: =IF(A102="","",IF(B102=B101,D101,COUNT($D$98:D101)+1)) -> 4 | Z102: =$B$61 -> WDP | AA102: =$A$61 -> Crystal Hill | AB102: =$L$61 -> 51 | AC102: =$V$61 -> 48 | AD102: =$W$61 -> 99 | AE102: =IF(AA102="","",IF(AD102>"a","",IF(AD102=AD101,AE101,COUNTA($AE$76:AE101)))) -> 6 | AG102: 13 | AH102: =$P$8 -> 3 | AI102: =$P$91 -> 4.5625 | AJ102: =$P$92 -> 1.5625 | AK102: =IF(AJ102=AJ101,AK101,COUNT($AK$96:AK101)+1) -> 6
A103: =$A$33 -> Seymour | B103: =$X$36 -> 441 | D103: =IF(A103="","",IF(B103=B102,D102,COUNT($D$98:D102)+1)) -> 5 | Z103: =$B$50 -> Bay | AA103: =$A$50 -> Maddie Gustrafson | AB103: =$L$50 -> 52 | AC103: =$V$50 -> 62 | AD103: =$W$50 -> 114 | AE103: =IF(AA103="","",IF(AD103>"a","",IF(AD103=AD102,AE102,COUNTA($AE$76:AE102)))) -> 7 | AG103: 12 | AH103: =$O$8 -> 4 | AI103: =$O$91 -> 6.5625 | AJ103: =$O$92 -> 2.5625 | AK103: =IF(AJ103=AJ102,AK102,COUNT($AK$96:AK102)+1) -> 7
A104: =$A$25 -> Preble | B104: =$X$28 -> 375 | D104: =IF(A104="","",IF(B104=B103,D103,COUNT($D$98:D103)+1)) -> 6 | Z104: =$B$34 -> Sey | AA104: =$A$34 -> Carley Schmit | AB104: =$L$34 -> 58 | AC104: =$V$34 -> 49 | AD104: =$W$34 -> 107 | AE104: =IF(AA104="","",IF(AD104>"a","",IF(AD104=AD103,AE103,COUNTA($AE$76:AE103)))) -> 8 | AG104: 11 | AH104: =$N$8 -> 4 | AI104: =$N$91 -> 7.083333333 | AJ104: =$N$92 -> 3.083333333 | AK104: =IF(AJ104=AJ103,AK103,COUNT($AK$96:AK103)+1) -> 8
A105: =$A$65 -> Oconto Falls | B105: =$X$68 -> 492 | D105: =IF(A105="","",IF(B105=B104,D104,COUNT($D$98:D104)+1)) -> 7 | Z105: =$B$52 -> Bay | AA105: =$A$52 -> Molly Hilbert | AB105: =$L$52 -> 54 | AC105: =$V$52 -> 52 | AD105: =$W$52 -> 106 | AE105: =IF(AA105="","",IF(AD105>"a","",IF(AD105=AD104,AE104,COUNTA($AE$76:AE104)))) -> 9 | AG105: 10 | AH105: =$M$8 -> 3 | AI105: =$M$91 -> 4.729166667 | AJ105: =$M$92 -> 1.729166667 | AK105: =IF(AJ105=AJ104,AK104,COUNT($AK$96:AK104)+1) -> 9
A106: =$A$41 -> Shawano | B106: =$X$44 -> 459 | D106: =IF(A106="","",IF(B106=B105,D105,COUNT($D$98:D105)+1)) -> 8 | Z106: =$B$19 -> Mar | AA106: =$A$19 -> Cassie Hilbert | AB106: =$L$19 -> 41 | AC106: =$V$19 -> 48 | AD106: =$W$19 -> 89 | AE106: =IF(AA106="","",IF(AD106>"a","",IF(AD106=AD105,AE105,COUNTA($AE$76:AE105)))) -> 10 | AG106: 5 | AH106: =$G$8 -> 4 | AI106: =$G$91 -> 6.020833333 | AJ106: =$G$92 -> 2.020833333 | AK106: =IF(AJ106=AJ105,AK105,COUNT($AK$96:AK105)+1) -> 10
A107: =IF(OR($A$81="",$A$81="Individuals",$A$81="School Name"),"",$A$81) -> Ashwaubenon | B107: =IF(OR($A$81="",$A$81="Individuals",$A$81="School Name")," ",$X$84) -> 474 | D107: =IF(A107="","",IF(B107=B106,D106,COUNT($D$98:D106)+1)) -> 9 | Z107: =$B$11 -> DEN | AA107: =$A$11 -> Lyndsey Bielinski | AB107: =$L$11 -> 43 | AC107: =$V$11 -> 47 | AD107: =$W$11 -> 90 | AE107: =IF(AA107="","",IF(AD107>"a","",IF(AD107=AD106,AE106,COUNTA($AE$76:AE106)))) -> 11 | AG107: 9 | AH107: =$K$8 -> 4 | AI107: =$K$91 -> 6.166666667 | AJ107: =$K$92 -> 2.166666667 | AK107: =IF(AJ107=AJ106,AK106,COUNT($AK$96:AK106)+1) -> 11
A108: =IF(OR($A$73="",$A$73="Individuals",$A$73="School Name"),"",$A$73) -> Oconto | B108: =IF(OR($A$73="",$A$73="Individuals",$A$73="School Name"),"",$X$76) -> 521 | D108: =IF(A108="","",IF(B108=B107,D107,COUNT($D$98:D107)+1)) -> 10 | Z108: =$B$20 -> Mar | AA108: =$A$20 -> Lexi Bretl | AB108: =$L$20 -> 50 | AC108: =$V$20 -> 52 | AD108: =$W$20 -> 102 | AE108: =IF(AA108="","",IF(AD108>"a","",IF(AD108=AD107,AE107,COUNTA($AE$76:AE107)))) -> 12 | AG108: 2 | AH108: =$D$8 -> 3 | AI108: =$D$91 -> 4.9375 | AJ108: =$D$92 -> 1.9375 | AK108: =IF(AJ108=AJ107,AK107,COUNT($AK$96:AK107)+1) -> 12
Z109: =$B$53 -> Bay | AA109: =$A$53 -> Brianna Schermitzler | AB109: =$L$53 -> 53 | AC109: =$V$53 -> 55 | AD109: =$W$53 -> 108 | AE109: =IF(AA109="","",IF(AD109>"a","",IF(AD109=AD108,AE108,COUNTA($AE$76:AE108)))) -> 13 | AG109: 6 | AH109: =$H$8 -> 4 | AI109: =$H$91 -> 7.604166667 | AJ109: =$H$92 -> 3.604166667 | AK109: =IF(AJ109=AJ108,AK108,COUNT($AK$96:AK108)+1) -> 13
Z110: =$B$14 -> DEN | AA110: =$A$14 -> Abby Chada | AB110: =$L$14 -> 58 | AC110: =$V$14 -> 54 | AD110: =$W$14 -> 112 | AE110: =IF(AA110="","",IF(AD110>"a","",IF(AD110=AD109,AE109,COUNTA($AE$76:AE109)))) -> 14 | AG110: 7 | AH110: =$I$8 -> 3 | AI110: =$I$91 -> 4.854166667 | AJ110: =$I$92 -> 1.854166667 | AK110: =IF(AJ110=AJ109,AK109,COUNT($AK$96:AK109)+1) -> 14
Z111: =$B$12 -> DEN | AA111: =$A$12 -> Tiffany Vogel | AB111: =$L$12 -> 56 | AC111: =$V$12 -> 58 | AD111: =$W$12 -> 114 | AE111: =IF(AA111="","",IF(AD111>"a","",IF(AD111=AD110,AE110,COUNTA($AE$76:AE110)))) -> 15 | AG111: 1 | AH111: =$C$8 -> 4 | AI111: =$C$91 -> 5.395833333 | AJ111: =$C$92 -> 1.395833333 | AK111: =IF(AJ111=AJ110,AK110,COUNT($AK$96:AK110)+1) -> 15
Z112: =$B$54 -> Bay | AA112: =$A$54 -> Hailey Bergman | AB112: =$L$54 -> 53 | AC112: =$V$54 -> 68 | AD112: =$W$54 -> 121 | AE112: =IF(AA112="","",IF(AD112>"a","",IF(AD112=AD111,AE111,COUNTA($AE$76:AE111)))) -> 16 | AG112: 3 | AH112: =$E$8 -> 4 | AI112: =$E$91 -> 6 | AJ112: =$E$92 -> 2 | AK112: =IF(AJ112=AJ111,AK111,COUNT($AK$96:AK111)+1) -> 16
Z113: =$B$38 -> Sey | AA113: =$A$38 -> Erika Gomm | AB113: =$L$38 -> 58 | AC113: =$V$38 -> 55 | AD113: =$W$38 -> 113 | AE113: =IF(AA113="","",IF(AD113>"a","",IF(AD113=AD112,AE112,COUNTA($AE$76:AE112)))) -> 17 | AG113: 8 | AH113: =$J$8 -> 4 | AI113: =$J$91 -> 6.666666667 | AJ113: =$J$92 -> 2.666666667 | AK113: =IF(AJ113=AJ112,AK112,COUNT($AK$96:AK112)+1) -> 17
Z114: =$B$43 -> Sha | AA114: =$A$43 -> Julia Beck | AB114: =$L$43 -> 48 | AC114: =$V$43 -> 55 | AD114: =$W$43 -> 103 | AE114: =IF(AA114="","",IF(AD114>"a","",IF(AD114=AD113,AE113,COUNTA($AE$76:AE113)))) -> 18 | AG114: 4 | AH114: =$F$8 -> 5 | AI114: =$F$91 -> 6.5 | AJ114: =$F$92 -> 1.5 | AK114: =IF(AJ114=AJ113,AK113,COUNT($AK$96:AK113)+1) -> 18
Z115: =$B$27 -> PRE | AA115: =$A$27 -> Sydney Onesti | AB115: =$L$27 -> 48 | AC115: =$V$27 -> 50 | AD115: =$W$27 -> 98 | AE115: =IF(AA115="","",IF(AD115>"a","",IF(AD115=AD114,AE114,COUNTA($AE$76:AE114)))) -> 19
Z116: =$B$68 -> OF | AA116: =$A$68 -> Brittany Russel | AB116: =$L$68 -> 60 | AC116: =$V$68 -> 51 | AD116: =$W$68 -> 111 | AE116: =IF(AA116="","",IF(AD116>"a","",IF(AD116=AD115,AE115,COUNTA($AE$76:AE115)))) -> 20
Z117: =$B$13 -> DEN | AA117: =$A$13 -> Haley Jisa | AB117: =$L$13 -> 48 | AC117: =$V$13 -> 52 | AD117: =$W$13 -> 100 | AE117: =IF(AA117="","",IF(AD117>"a","",IF(AD117=AD116,AE116,COUNTA($AE$76:AE116)))) -> 21 | AG117: Team | AH117: Results
Z118: =$B$60 -> WDP | AA118: =$A$60 -> Abby Van De Hei | AB118: =$L$60 -> 57 | AC118: =$V$60 -> 48 | AD118: =$W$60 -> 105 | AE118: =IF(AA118="","",IF(AD118>"a","",IF(AD118=AD117,AE117,COUNTA($AE$76:AE117)))) -> 22 | AG118: School | AH118: Score | AI118: Place
Z119: =$B$42 -> Sha | AA119: =$A$42 -> 0 | AB119: =$L$42 -> 0 | AC119: =$V$42 -> DQ | AD119: =$W$42 -> DQ | AE119: =IF(AA119="","",IF(AD119>"a","",IF(AD119=AD118,AE118,COUNTA($AE$76:AE118)))) ->  | AG119: =A99 -> Denmark | AH119: =B99 -> 399 | AI119: =D99 -> 1
Z120: =$B$69 -> OF | AA120: =$A$69 -> Bridget Gorman | AB120: =$L$69 -> 61 | AC120: =$V$69 -> 64 | AD120: =$W$69 -> 125 | AE120: =IF(AA120="","",IF(AD120>"a","",IF(AD120=AD119,AE119,COUNTA($AE$76:AE119)))) -> 24 | AG120: =A100 -> BayPort | AH120: =B100 -> 423 | AI120: =D100 -> 2
Z121: =$B$59 -> WDP | AA121: =$A$59 -> Brittany Nohr | AB121: =$L$59 -> 47 | AC121: =$V$59 -> 48 | AD121: =$W$59 -> 95 | AE121: =IF(AA121="","",IF(AD121>"a","",IF(AD121=AD120,AE120,COUNTA($AE$76:AE120)))) -> 25 | AG121: Marinette | AH121: 382 | AI121: 3
Z122: =$B$44 -> Sha | AA122: =$A$44 -> Gabby Krueger | AB122: =$L$44 -> 50 | AC122: =$V$44 -> 68 | AD122: =$W$44 -> 118 | AE122: =IF(AA122="","",IF(AD122>"a","",IF(AD122=AD121,AE121,COUNTA($AE$76:AE121)))) -> 26 | AG122: West De Pere | AH122: 388 | AI122: 4
Z123: =$B$21 -> Mar | AA123: =$A$21 -> Mariah Chenier | AB123: =$L$21 -> 54 | AC123: =$V$21 -> 55 | AD123: =$W$21 -> 109 | AE123: =IF(AA123="","",IF(AD123>"a","",IF(AD123=AD122,AE122,COUNTA($AE$76:AE122)))) -> 27 | AG123: Seymour | AH123: 441 | AI123: 5
Z124: =$B$36 -> Sey | AA124: =$A$36 -> Anna Pesola | AB124: =$L$36 -> 58 | AC124: =$V$36 -> 52 | AD124: =$W$36 -> 110 | AE124: =IF(AA124="","",IF(AD124>"a","",IF(AD124=AD123,AE123,COUNTA($AE$76:AE123)))) -> 28 | AG124: Preble | AH124: 375 | AI124: 6
Z125: =$B$35 -> Sey | AA125: =$A$35 -> Brittany Rettler | AB125: =$L$35 -> 54 | AC125: =$V$35 -> 57 | AD125: =$W$35 -> 111 | AE125: =IF(AA125="","",IF(AD125>"a","",IF(AD125=AD124,AE124,COUNTA($AE$76:AE124)))) -> 29 | AG125: Oconto Falls | AH125: 492 | AI125: 7
Z126: =$B$70 -> OF | AA126: =$A$70 -> Rebecca Berkovitz | AB126: =$L$70 -> 62 | AC126: =$V$70 -> 72 | AD126: =$W$70 -> 134 | AE126: =IF(AA126="","",IF(AD126>"a","",IF(AD126=AD125,AE125,COUNTA($AE$76:AE125)))) -> 30 | AG126: Shawano | AH126: 459 | AI126: 8
Z127: =$B$66 -> OF | AA127: =$A$66 -> Julie Moore | AB127: =$L$66 -> 64 | AC127: =$V$66 -> 58 | AD127: =$W$66 -> 122 | AE127: =IF(AA127="","",IF(AD127>"a","",IF(AD127=AD126,AE126,COUNTA($AE$76:AE126)))) -> 31 | AG127: Ashwaubenon | AH127: 474 | AI127: 9
Z128: =$B$22 -> Mar | AA128: =$A$22 -> Hallie Olsen | AB128: =$L$22 -> 48 | AC128: =$V$22 -> 59 | AD128: =$W$22 -> 107 | AE128: =IF(AA128="","",IF(AD128>"a","",IF(AD128=AD127,AE127,COUNTA($AE$76:AE127)))) -> 32 | AG128: Oconto | AH128: 521 | AI128: 10
Z129: =$B$28 -> PRE | AA129: =$A$28 -> Katie Warpinski | AB129: =$L$28 -> 45 | AC129: =$V$28 -> 48 | AD129: =$W$28 -> 93 | AE129: =IF(AA129="","",IF(AD129>"a","",IF(AD129=AD128,AE128,COUNTA($AE$76:AE128)))) -> 33
Z130: =$B$67 -> OF | AA130: =$A$67 -> Liz Coopman | AB130: =$L$67 -> 69 | AC130: =$V$67 -> 73 | AD130: =$W$67 -> 142 | AE130: =IF(AA130="","",IF(AD130>"a","",IF(AD130=AD129,AE129,COUNTA($AE$76:AE129)))) -> 34
Z131: =$B$62 -> WDP | AA131: =$A$62 -> Maddy Coppens | AB131: =$L$62 -> 51 | AC131: =$V$62 -> 54 | AD131: =$W$62 -> 105 | AE131: =IF(AA131="","",IF(AD131>"a","",IF(AD131=AD130,AE130,COUNTA($AE$76:AE130)))) -> 35
Z132: =$B$45 -> Sha | AA132: =$A$45 -> Sydney Schreiber | AB132: =$L$45 -> 65 | AC132: =$V$45 -> 63 | AD132: =$W$45 -> 128 | AE132: =IF(AA132="","",IF(AD132>"a","",IF(AD132=AD131,AE131,COUNTA($AE$76:AE131)))) -> 36
Z133: =$B$37 -> Sey | AA133: =$A$37 -> Hannah Schmit | AB133: =$L$37 -> 71 | AC133: =$V$37 -> 54 | AD133: =$W$37 -> 125 | AE133: =IF(AA133="","",IF(AD133>"a","",IF(AD133=AD132,AE132,COUNTA($AE$76:AE132)))) -> 37
Z134: =$B$29 -> PRE | AA134: =$A$29 -> Aleta Wegner | AB134: =$L$29 -> 53 | AC134: =$V$29 -> 56 | AD134: =$W$29 -> 109 | AE134: =IF(AA134="","",IF(AD134>"a","",IF(AD134=AD133,AE133,COUNTA($AE$76:AE133)))) -> 38
Z135: =$B$30 -> PRE | AA135: =$A$30 -> Annie Schneider | AB135: =$L$30 -> 47 | AC135: =$V$30 -> 57 | AD135: =$W$30 -> 104 | AE135: =IF(AA135="","",IF(AD135>"a","",IF(AD135=AD134,AE134,COUNTA($AE$76:AE134)))) -> 39
Z136: =$B$46 -> Sha | AA136: =$A$46 -> Brianna Zook | AB136: =$L$46 -> 50 | AC136: =$V$46 -> 60 | AD136: =$W$46 -> 110 | AE136: =IF(AA136="","",IF(AD136>"a","",IF(AD136=AD135,AE135,COUNTA($AE$76:AE135)))) -> 40
Z137: =IF(OR($A$73="",$A$73="School Name"),"",$B$76) -> OCO | AA137: =IF(OR($A$73="",$A$73="School Name"),"",$A$76) -> Ashley Pruessler | AB137: =IF(OR($A$73="",$A$73="School Name"),"",$L$76) -> 60 | AC137: =IF(OR($A$73="",$A$73="School Name"),"",$V$76) -> 64 | AD137: =IF(OR($A$73="",$A$73="School Name"),"",$W$76) -> 124 | AE137: =IF(AA137="","",IF(AD137>"a","",IF(AD137=AD136,AE136,COUNTA($AE$76:AE136)))) -> 41
Z138: =IF(OR($A$73="",$A$73="School Name"),"",$B$75) -> OCO | AA138: =IF(OR($A$73="",$A$73="School Name"),"",$A$75) -> Amber Moder | AB138: =IF(OR($A$73="",$A$73="School Name"),"",$L$75) -> 63 | AC138: =IF(OR($A$73="",$A$73="School Name"),"",$V$75) -> 73 | AD138: =IF(OR($A$73="",$A$73="School Name"),"",$W$75) -> 136 | AE138: =IF(AA138="","",IF(AD138>"a","",IF(AD138=AD137,AE137,COUNTA($AE$76:AE137)))) -> 42
Z139: =IF(OR($A$73="",$A$73="School Name"),"",$B$77) -> OCO | AA139: =IF(OR($A$73="",$A$73="School Name"),"",$A$77) -> Morgan Saari | AB139: =IF(OR($A$73="",$A$73="School Name"),"",$L$77) -> 73 | AC139: =IF(OR($A$73="",$A$73="School Name"),"",$V$77) -> 80 | AD139: =IF(OR($A$73="",$A$73="School Name"),"",$W$77) -> 153 | AE139: =IF(AA139="","",IF(AD139>"a","",IF(AD139=AD138,AE138,COUNTA($AE$76:AE138)))) -> 43
Z140: =IF(OR($A$73="",$A$73="School Name"),"",$B$74) -> OCO | AA140: =IF(OR($A$73="",$A$73="School Name"),"",$A$74) -> Megan Ryan | AB140: =IF(OR($A$73="",$A$73="School Name"),"",$L$74) -> 57 | AC140: =IF(OR($A$73="",$A$73="School Name"),"",$V$74) -> 51 | AD140: =IF(OR($A$73="",$A$73="School Name"),"",$W$74) -> 108 | AE140: =IF(AA140="","",IF(AD140>"a","",IF(AD140=AD139,AE139,COUNTA($AE$76:AE139)))) -> 44
Z141: =IF(OR($A$73="",$A$73="School Name"),"",$B$78) -> OCO | AA141: =IF(OR($A$73="",$A$73="School Name"),"",$A$78) -> 0 | AB141: =IF(OR($A$73="",$A$73="School Name"),"",$L$78) -> 0 | AC141: =IF(OR($A$73="",$A$73="School Name"),"",$V$78) -> DQ | AD141: =IF(OR($A$73="",$A$73="School Name"),"",$W$78) -> DQ | AE141: =IF(AA141="","",IF(AD141>"a","",IF(AD141=AD140,AE140,COUNTA($AE$76:AE140)))) -> 
Z142: =IF(OR($A$81="",$A$81="School Name"),"",$B$83) -> DEP | AA142: =IF(OR($A$81="",$A$81="School Name"),"",$A$84) -> Breanna Schmitt | AB142: =IF(OR($A$81="",$A$81="School Name"),"",$L$84) -> 62 | AC142: =IF(OR($A$81="",$A$81="School Name"),"",$V$84) -> 58 | AD142: =IF(OR($A$81="",$A$81="School Name"),"zz",$W$84) -> 120 | AE142: =IF(AA142="","",IF(AD142>"a","",IF(AD142=AD141,AE141,COUNTA($AE$76:AE141)))) -> 46
Z143: =IF(OR($A$81="",$A$81="School Name"),"",$B$82) -> DEP | AA143: =IF(OR($A$81="",$A$81="School Name"),"",$A$83) -> Kayley Sjoholm | AB143: =IF(OR($A$81="",$A$81="School Name"),"",$L$83) -> 58 | AC143: =IF(OR($A$81="",$A$81="School Name"),"",$V$83) -> 61 | AD143: =IF(OR($A$81="",$A$81="School Name"),"zz",$W$83) -> 119 | AE143: =IF(AA143="","",IF(AD143>"a","",IF(AD143=AD142,AE142,COUNTA($AE$76:AE142)))) -> 47
Z144: =IF(OR($A$81="",$A$81="School Name"),"",$B$85) -> DEP | AA144: =IF(OR($A$81="",$A$81="School Name"),"",$A$85) -> Mckenna Morrow | AB144: =IF(OR($A$81="",$A$81="School Name"),"",$L$85) -> 66 | AC144: =IF(OR($A$81="",$A$81="School Name"),"",$V$85) -> 56 | AD144: =IF(OR($A$81="",$A$81="School Name"),"zz",$W$85) -> 122 | AE144: =IF(AA144="","",IF(AD144>"a","",IF(AD144=AD143,AE143,COUNTA($AE$76:AE143)))) -> 48
Z145: =IF(OR($A$81="",$A$81="School Name"),"",$B$86) -> DEP | AA145: =IF(OR($A$81="",$A$81="School Name"),"",$A$82) -> Dani Neel | AB145: =IF(OR($A$81="",$A$81="School Name"),"",$L$82) -> 57 | AC145: =IF(OR($A$81="",$A$81="School Name"),"",$V$82) -> 59 | AD145: =IF(OR($A$81="",$A$81="School Name"),"zz",$W$82) -> 116 | AE145: =IF(AA145="","",IF(AD145>"a","",IF(AD145=AD144,AE144,COUNTA($AE$76:AE144)))) -> 49
Z146: =IF(OR($A$81="",$A$81="School Name"),"",$B$84) -> DEP | AA146: =IF(OR($A$81="",$A$81="School Name"),"",$A$86) -> Hailey Brabant | AB146: =IF(OR($A$81="",$A$81="School Name"),"",$L$86) -> 57 | AC146: =IF(OR($A$81="",$A$81="School Name"),"",$V$86) -> 62 | AD146: =IF(OR($A$81="",$A$81="School Name"),"zz",$W$86) -> 119 | AE146: =IF(AA146="","",IF(AD146>"a","",IF(AD146=AD145,AE145,COUNTA($AE$76:AE145)))) -> 50
Z152: =A4 -> Marinette Invite 2014
Z153: =A5 -> Riverside Country Club Par
AA155: The Italicized score is the team best ball score
Z156: Place | AF156: Place
Z157: =VLOOKUP($X$12,$B$99:$D$108,3,FALSE) -> 1 | AA157: =$A$9 -> Denmark | AB157: out | AC157: in | AD157: total | AE157: TEAM | AF157: =VLOOKUP($X$20,$B$99:$D$108,3,FALSE) -> 3 | AG157: =$A$17 -> Marinette | AH157: out | AI157: in | AJ157: total | AK157: TEAM
AA158: =$A$10 -> Leah Hansen | AB158: =$L$10 -> 48 | AC158: =$V$10 -> 49 | AD158: =$W$10 -> 97 | AG158: =$A$18 -> Kayla Thielen | AH158: =$L$18 -> 38 | AI158: =$V$18 -> 46 | AJ158: =$W$18 -> 84
AA159: =$A$11 -> Lyndsey Bielinski | AB159: =$L$11 -> 43 | AC159: =$V$11 -> 47 | AD159: =$W$11 -> 90 | AG159: =$A$19 -> Cassie Hilbert | AH159: =$L$19 -> 41 | AI159: =$V$19 -> 48 | AJ159: =$W$19 -> 89
AA160: =$A$12 -> Tiffany Vogel | AB160: =$L$12 -> 56 | AC160: =$V$12 -> 58 | AD160: =$W$12 -> 114 | AE160: =$X$12 -> 399 | AG160: =$A$20 -> Lexi Bretl | AH160: =$L$20 -> 50 | AI160: =$V$20 -> 52 | AJ160: =$W$20 -> 102 | AK160: =$X$20 -> 382
AA161: =$A$13 -> Haley Jisa | AB161: =$L$13 -> 48 | AC161: =$V$13 -> 52 | AD161: =$W$13 -> 100 | AE161: =$W$15 -> 81 | AG161: =$A$21 -> Mariah Chenier | AH161: =$L$21 -> 54 | AI161: =$V$21 -> 55 | AJ161: =$W$21 -> 109 | AK161: =$W$23 -> 74
AA162: =$A$14 -> Abby Chada | AB162: =$L$14 -> 58 | AC162: =$V$14 -> 54 | AD162: =$W$14 -> 112 | AG162: =$A$22 -> Hallie Olsen | AH162: =$L$22 -> 48 | AI162: =$V$22 -> 59 | AJ162: =$W$22 -> 107
Z163: =VLOOKUP($X$28,$B$99:$D$108,3,FALSE) -> 6 | AA163: =$A$25 -> Preble | AB163: out | AC163: in | AD163: total | AE163: TEAM | AF163: =VLOOKUP($X$36,$B$99:$D$108,3,FALSE) -> 5 | AG163: =$A$33 -> Seymour | AH163: out | AI163: in | AJ163: total | AK163: TEAM
AA164: =$A$26 -> Maddy Neumeier | AB164: =$L$26 -> 40 | AC164: =$V$26 -> 40 | AD164: =$W$26 -> 80 | AG164: =$A$34 -> Carley Schmit | AH164: =$L$34 -> 58 | AI164: =$V$34 -> 49 | AJ164: =$W$34 -> 107
AA165: =$A$27 -> Sydney Onesti | AB165: =$L$27 -> 48 | AC165: =$V$27 -> 50 | AD165: =$W$27 -> 98 | AG165: =$A$35 -> Brittany Rettler | AH165: =$L$35 -> 54 | AI165: =$V$35 -> 57 | AJ165: =$W$35 -> 111
AA166: =$A$28 -> Katie Warpinski | AB166: =$L$28 -> 45 | AC166: =$V$28 -> 48 | AD166: =$W$28 -> 93 | AE166: =$X$28 -> 375 | AG166: =$A$36 -> Anna Pesola | AH166: =$L$36 -> 58 | AI166: =$V$36 -> 52 | AJ166: =$W$36 -> 110 | AK166: =$X$36 -> 441
AA167: =$A$29 -> Aleta Wegner | AB167: =$L$29 -> 53 | AC167: =$V$29 -> 56 | AD167: =$W$29 -> 109 | AE167: =$W$31 -> 73 | AG167: =$A$37 -> Hannah Schmit | AH167: =$L$37 -> 71 | AI167: =$V$37 -> 54 | AJ167: =$W$37 -> 125 | AK167: =$W$39 -> 88
AA168: =$A$30 -> Annie Schneider | AB168: =$L$30 -> 47 | AC168: =$V$30 -> 57 | AD168: =$W$30 -> 104 | AG168: =$A$38 -> Erika Gomm | AH168: =$L$38 -> 58 | AI168: =$V$38 -> 55 | AJ168: =$W$38 -> 113
Z169: =VLOOKUP($X$44,$B$99:$D$108,3,FALSE) -> 8 | AA169: =$A$41 -> Shawano | AB169: out | AC169: in | AD169: total | AE169: TEAM | AF169: =VLOOKUP($X$52,$B$99:$D$108,3,FALSE) -> 2 | AG169: =$A$49 -> BayPort | AH169: out | AI169: in | AJ169: total | AK169: TEAM
AA170: =$A$42 -> 0 | AB170: =$L$42 -> 0 | AC170: =$V$42 -> DQ | AD170: =$W$42 -> DQ | AG170: =$A$50 -> Maddie Gustrafson | AH170: =$L$50 -> 52 | AI170: =$V$50 -> 62 | AJ170: =$W$50 -> 114
AA171: =$A$43 -> Julia Beck | AB171: =$L$43 -> 48 | AC171: =$V$43 -> 55 | AD171: =$W$43 -> 103 | AG171: =$A$51 -> Hannah Luedke | AH171: =$L$51 -> 44 | AI171: =$V$51 -> 51 | AJ171: =$W$51 -> 95
AA172: =$A$44 -> Gabby Krueger | AB172: =$L$44 -> 50 | AC172: =$V$44 -> 68 | AD172: =$W$44 -> 118 | AE172: =$X$44 -> 459 | AG172: =$A$52 -> Molly Hilbert | AH172: =$L$52 -> 54 | AI172: =$V$52 -> 52 | AJ172: =$W$52 -> 106 | AK172: =$X$52 -> 423
AA173: =$A$45 -> Sydney Schreiber | AB173: =$L$45 -> 65 | AC173: =$V$45 -> 63 | AD173: =$W$45 -> 128 | AE173: =$W$47 -> 89 | AG173: =$A$53 -> Brianna Schermitzler | AH173: =$L$53 -> 53 | AI173: =$V$53 -> 55 | AJ173: =$W$53 -> 108 | AK173: =$W$55 -> 81
AA174: =$A$46 -> Brianna Zook | AB174: =$L$46 -> 50 | AC174: =$V$46 -> 60 | AD174: =$W$46 -> 110 | AG174: =$A$54 -> Hailey Bergman | AH174: =$L$54 -> 53 | AI174: =$V$54 -> 68 | AJ174: =$W$54 -> 121
Z175: =VLOOKUP($X$60,$B$99:$D$108,3,FALSE) -> 4 | AA175: =$A$57 -> West De Pere | AB175: out | AC175: in | AD175: total | AE175: TEAM | AF175: =VLOOKUP($X$68,$B$99:$D$108,3,FALSE) -> 7 | AG175: =$A$65 -> Oconto Falls | AH175: out | AI175: in | AJ175: total | AK175: TEAM
AA176: =$A$58 -> Megan Lau | AB176: =$L$58 -> 39 | AC176: =$V$58 -> 50 | AD176: =$W$58 -> 89 | AG176: =$A$66 -> Julie Moore | AH176: =$L$66 -> 64 | AI176: =$V$66 -> 58 | AJ176: =$W$66 -> 122
AA177: =$A$59 -> Brittany Nohr | AB177: =$L$59 -> 47 | AC177: =$V$59 -> 48 | AD177: =$W$59 -> 95 | AG177: =$A$67 -> Liz Coopman | AH177: =$L$67 -> 69 | AI177: =$V$67 -> 73 | AJ177: =$W$67 -> 142
AA178: =$A$60 -> Abby Van De Hei | AB178: =$L$60 -> 57 | AC178: =$V$60 -> 48 | AD178: =$W$60 -> 105 | AE178: =$X$60 -> 388 | AG178: =$A$68 -> Brittany Russel | AH178: =$L$68 -> 60 | AI178: =$V$68 -> 51 | AJ178: =$W$68 -> 111 | AK178: =$X$68 -> 492
AA179: =$A$61 -> Crystal Hill | AB179: =$L$61 -> 51 | AC179: =$V$61 -> 48 | AD179: =$W$61 -> 99 | AE179: =$W$63 -> 76 | AG179: =$A$69 -> Bridget Gorman | AH179: =$L$69 -> 61 | AI179: =$V$69 -> 64 | AJ179: =$W$69 -> 125 | AK179: =$W$71 -> 96
AA180: =$A$62 -> Maddy Coppens | AB180: =$L$62 -> 51 | AC180: =$V$62 -> 54 | AD180: =$W$62 -> 105 | AG180: =$A$70 -> Rebecca Berkovitz | AH180: =$L$70 -> 62 | AI180: =$V$70 -> 72 | AJ180: =$W$70 -> 134
Z181: =IF(OR($A$73="",$A$73="Individuals",$A$73="School Name"),"",VLOOKUP($X$76,$B$99:$D$108,3,FALSE)) -> 10 | AA181: =IF(OR($A$73="",$A$73="School Name"),"",$A$73) -> Oconto | AB181: out | AC181: in | AD181: total | AE181: TEAM | AF181: =IF(OR($A$81="",$A$81="Individuals",$A$81="School Name"),"",VLOOKUP($X$84,$B$99:$D$108,3,FALSE)) -> 9 | AG181: =IF(OR($A$81="",$A$81="School Name"),"",A81) -> Ashwaubenon | AH181: out | AI181: in | AJ181: total | AK181: TEAM
AA182: =IF(OR(A74="player 1",A74=""),"",A74) -> Megan Ryan | AB182: =$L$74 -> 57 | AC182: =$V$74 -> 51 | AD182: =$W$74 -> 108 | AG182: Dani Neel | AH182: =IF(OR($A$81="",$A$81="School Name"),"",L82) -> 57 | AI182: =IF(OR($A$81="",$A$81="School Name"),"",V82) -> 59 | AJ182: 116
AA183: =IF(OR(A75="player 2",A75=""),"",A75) -> Amber Moder | AB183: =$L$75 -> 63 | AC183: =$V$75 -> 73 | AD183: =$W$75 -> 136 | AG183: Kayley Sjoholm | AH183: =IF(OR($A$81="",$A$81="School Name"),"",L83) -> 58 | AI183: 61 | AJ183: 119
AA184: =IF(OR(A76="player 3",A76=""),"",A76) -> Ashley Pruessler | AB184: =$L$76 -> 60 | AC184: =$V$76 -> 64 | AD184: =$W$76 -> 124 | AE184: =IF(OR($A$73="",$A$73="Individuals",$A$73="School Name"),"",$X$76) -> 521 | AG184: Breanna Schmitt | AH184: =IF(OR($A$81="",$A$81="School Name"),"",L84) -> 62 | AI184: 58 | AJ184: 120 | AK184: =IF(OR($A$81="",$A$81="Individuals",$A$81="School Name"),"",$X$84) -> 474
AA185: =IF(OR(A77="player 4",A77=""),"",A77) -> Morgan Saari | AB185: =$L$77 -> 73 | AC185: =$V$77 -> 80 | AD185: =$W$77 -> 153 | AE185: =IF(OR($A$73="",$A$73="Individuals",$A$73="School Name"),"",$W$79) -> 99 | AG185: Mckenna Morrow | AH185: =IF(OR($A$81="",$A$81="School Name"),"",L85) -> 66 | AI185: 56 | AJ185: 122 | AK185: =IF(OR($A$81="",$A$81="Individuals",$A$81="School Name"),"",$W$87) -> 97
AA186: =IF(OR(A78="player 5",A78=""),"",A78) ->  | AB186: =$L$78 -> 0 | AC186: =$V$78 -> DQ | AD186: =$W$78 -> DQ | AG186: Hailey Brabant | AH186: =IF(OR($A$81="",$A$81="School Name"),"",L86) -> 57 | AI186: 62 | AJ186: 119
A500: Bob Mellinger | AN500: Bob Melliinger

Sheet Sheet2
A1: Place | B1: Name | C1: Score | D1: School
A2: 1 | B2: Maddy Neumeier | C2: 80 | D2: Preble
A3: 2 | B3: Kayla Thielen | C3: 84 | D3: Marinette
A4: 3 | B4: Cassie Hilbert | C4: 89 | D4: Marinette
A5: 4 | B5: Megan Lau | C5: 89 | D5: West DePere
A6: 5 | B6: Lyndsey Bielinski | C6: 90 | D6: Denmark
A7: 6 | B7: Katie Warpinski | C7: 93 | D7: Preble
A8: 7 | B8: Brittany Nohr | C8: 95 | D8: West DePere
A9: 8 | B9: Hannah Luedke | C9: 95 | D9: BayPort
A10: 9 | B10: Leah Hansen | C10: 97 | D10: Denmark
A11: 10 | B11: Sydney Onetsi | C11: 98 | D11: Preble
A12: 11 | B12: Crystal Hill | C12: 99 | D12: West DePere
A13: 12 | B13: Haley Jisa | C13: 100 | D13: Denmark
A14: 13 | B14: Lexi Bretl | C14: 102 | D14: Marinette
A15: 14 | B15: Julia Beck | C15: 103 | D15: Shawano
A16: 15 | B16: Annie Schneider | C16: 104 | D16: Preble
A19: Schools
A21: Preble 375
A22: Marinette 382
A23: West De Pere 388
A24: Denmark 399
A25: BayPort 423
A26: Seymour 441
A27: Shawano 459
A28: Ashwaubenon 474
A29: Oconto Falls 492
A30: Oconto 521
